[Event "8th Brazilian Open SESC Caioba 2024"]
[Site "Caioba"]
[Date "2024.06.28"]
[Round "7.9"]
[White "Sunye Neto, Jaime"]
[Black "Van Riemsdijk, Herman C."]
[Result "1/2-1/2"]
[ECO "E05"]
[WhiteElo "2398"]
[BlackElo "2248"]
[Annotator "RC"]
[PlyCount "99"]
[EventDate "2024.06.15"]
[EventCountry "BRA"]
[SourceTitle "playchess.com"]
[Source "ChessBase"]
[SourceQuality "1"]
[TimeControl "5400+30"]

1. c4 {[%emt 0:00:25]} e6 {[%emt 0:00:55]} 2. Nf3 {[%emt 0:00:31]} d5 {[%emt 0:00:59]} 3. g3 {[%emt 0:03:22]} Nf6 {[%emt 0:00:18]} 4. Bg2 {[%emt 0:00:08]} Be7 {[%emt 0:00:19]} 5. O-O {[%emt 0:00:35]} O-O {[%emt 0:00:09]} 6. d4 {[%emt 0:01:20]} dxc4 {[%emt 0:00:15]} 7. Qa4 {[%emt 0:00:36]} a6 {[%emt 0:00:31]} 8. Qxc4 {[%emt 0:00:25]} b5 {[%emt 0:00:06]} 9. Qc2 {[%emt 0:00:32]} Bb7 {[%emt 0:00:07]} 10. Bg5 {[%emt 0:01:50]} Nc6 {[%emt 0:18:21]} 11. Rd1 {[%emt 0:08:07]} Nb4 {[%emt 0:03:29]} 12. Qc1 {[%emt 0:01:38]} Ne4 {[%emt 0:03:15]} 13. Bxe7 {[%emt 0:03:51]} Qxe7 {[%emt 0:00:09]} 14. a3 {[%emt 0:12:11]} Nd5 {[%emt 0:00:25]} 15. Ne5 {[%emt 0:09:49]} Nd6 {[%emt 0:05:33]} 16. Nd2 {[%emt 0:07:48]} Nb6 {[%emt 0:06:36]} 17. Bxb7 {[%emt 0:07:16]} Nxb7 {[%emt 0:00:09]} 18. Qc6 {[%emt 0:07:03]} Nd8 {[%emt 0:02:49]} 19. Qc2 {[%emt 0:00:56]} f6 {[%emt 0:06:54]} 20. Nef3 {[%emt 0:04:41]} Nb7 {[%emt 0:03:43]} 21. Ne4 {[%emt 0:05:20]} Rfc8 {[%emt 0:01:29]} 22. Nc5 {[%emt 0:00:38]} Nxc5 {[%emt 0:01:59]} 23. dxc5 {[%emt 0:00:10]} Nd7 {[%emt 0:00:17]} 24. b4 {[%emt 0:00:55]} Rd8 {[%emt 0:03:27]} 25. Qe4 {[%emt 0:01:46]} e5 {[%emt 0:02:25]} 26. Nd4 {[%emt 0:00:21]} Qf7 {[%emt 0:02:48]} 27. Nc6 {[%emt 0:01:05]} Re8 {[%emt 0:00:21]} 28. Qd5 {[%emt 0:04:07]} Nf8 {[%emt 0:00:35]} 29. Qxf7+ {[%emt 0:00:49]} Kxf7 {[%emt 0:00:08]} 30. Rd5 {[%emt 0:00:09]} Rac8 {[%emt 0:02:53]} 31. Rad1 {[%emt 0:00:18]} g5 {[%emt 0:01:45]} 32. h3 {[%emt 0:02:12]} h5 {[%emt 0:00:13]} 33. e4 {[%emt 0:00:12]} g4 {[%emt 0:06:33]} 34. hxg4 {[%emt 0:01:24]} hxg4 {[%emt 0:00:07]} 35. Kf1 {[%emt 0:00:28]} Kg6 {[%emt 0:04:27]} 36. Ke2 {[%emt 0:00:24]} Re6 {[%emt 0:02:06]} 37. Rd8 {[%emt 0:01:12]} Rxd8 {[%emt 0:00:08]} 38. Rxd8 {[%emt 0:01:07]} Rxc6 {[%emt 0:01:37]} 39. Rxf8 {[%emt 0:00:08]} a5 {[%emt 0:00:15]} 40. Rb8 {[%emt 0:00:19]} axb4 {[%emt 0:00:05]} 41. axb4 {[%emt 0:00:14]} Ra6 {[%emt 0:00:28]} 42. Rxb5 {[%emt 0:00:08]} Ra2+ {[%emt 0:00:10]} 43. Kf1 {[%emt 0:06:09]} Ra1+ {[%emt 0:00:15]} 44. Kg2 {[%emt 0:00:12]} Re1 {[%emt 0:00:43]} 45. Rb8 {[%emt 0:02:50]} c6 {[%emt 0:00:59]} 46. Rg8+ {[%emt 0:00:31]} Kf7 {[%emt 0:00:18]} 47. Rxg4 {[%emt 0:00:17]} Rb1 {[%emt 0:00:58]} 48. Rh4 {[%emt 0:00:20]} Kg7 {[%emt 0:00:53]} 49. Rg4+ {[%emt 0:04:07]} Kf7 {[%emt 0:00:24]} 50. Rh4 {[%emt 0:00:59]} 1/2-1/2

[Event "8th Brazilian Open SESC Caioba 2024"]
[Site "Caioba"]
[Date "2024.06.28"]
[Round "7.10"]
[White "Rodi, Luis Ernesto"]
[Black "Matsuura, Everaldo"]
[Result "1/2-1/2"]
[ECO "B23"]
[WhiteElo "2208"]
[BlackElo "2380"]
[Annotator "RC"]
[PlyCount "25"]
[EventDate "2024.06.15"]
[EventCountry "BRA"]
[SourceTitle "playchess.com"]
[Source "ChessBase"]
[SourceQuality "1"]
[TimeControl "5400+30"]

1. e4 {[%emt 1:31:00]} c5 {[%emt 0:02:42]} 2. Nc3 {[%emt 0:00:00]} Nc6 {[%emt 0:00:40]} 3. Bb5 {[%emt 0:00:00]} Nd4 {[%emt 0:00:27]} 4. Nf3 {[%emt 0:00:00]} a6 {[%emt 0:00:51]} 5. Bd3 {[%emt 0:00:00]} Nc6 {[%emt 0:01:10]} 6. O-O {[%emt 0:00:00]} d6 {[%emt 0:00:52]} 7. Bc4 {[%emt 0:00:00]} e6 {[%emt 0:01:20]} 8. d4 {[%emt 0:00:00]} cxd4 {[%emt 0:03:30]} 9. Nxd4 {[%emt 0:00:00]} Qc7 {[%emt 0:01:08]} 10. Nxc6 {[%emt 0:00:00]} Qxc6 {[%emt 0:01:53]} 11. Qe2 {[%emt 0:00:00]} Be7 {[%emt 0:07:07]} 12. f4 {[%emt 0:00:00]} Nf6 {[%emt 0:02:20]} 13. Kh1 {[%emt 0:00:00]} 1/2-1/2

[Event "8th Brazilian Open SESC Caioba 2024"]
[Site "Caioba"]
[Date "2024.06.28"]
[Round "7.11"]
[White "Umetsubo, Cesar Hidemitsu"]
[Black "Piccoli, Lucas Fonseca"]
[Result "1-0"]
[ECO "E33"]
[WhiteElo "2362"]
[BlackElo "2242"]
[Annotator "RC"]
[PlyCount "91"]
[EventDate "2024.06.15"]
[EventCountry "BRA"]
[SourceTitle "playchess.com"]
[Source "ChessBase"]
[SourceQuality "1"]
[TimeControl "5400+30"]

1. d4 {[%emt 0:01:13]} Nf6 {[%emt 0:02:19]} 2. c4 {[%emt 0:00:13]} e6 {[%emt 0:00:07]} 3. Nc3 {[%emt 0:00:07]} Bb4 {[%emt 0:00:06]} 4. Qc2 {[%emt 0:00:09]} Nc6 {[%emt 0:00:49]} 5. Nf3 {[%emt 0:00:23]} d6 {[%emt 0:00:22]} 6. Bd2 {[%emt 0:00:12]} O-O {[%emt 0:01:46]} 7. a3 {[%emt 0:00:11]} Bxc3 {[%emt 0:00:05]} 8. Bxc3 {[%emt 0:00:08]} a5 {[%emt 0:03:16]} 9. e4 {[%emt 0:01:08]} Nd7 {[%emt 0:11:52]} 10. Rd1 {[%emt 0:16:01]} e5 {[%emt 0:32:52]} 11. dxe5 {[%emt 0:01:27]} dxe5 {[%emt 0:00:30]} 12. Nxe5 {[%emt 0:01:38]} Ncxe5 {[%emt 0:00:08]} 13. Bxe5 {[%emt 0:00:17]} Re8 {[%emt 0:00:07]} 14. Bg3 {[%emt 0:08:10]} Qe7 {[%emt 0:00:15]} 15. Be2 {[%emt 0:03:18]} Nf6 {[%emt 0:12:05]} 16. e5 {[%emt 0:22:35]} Ng4 {[%emt 0:00:29]} 17. Qc3 {[%emt 0:41:50]} f6 {[%emt 0:09:17]} 18. Bxg4 {[%emt 0:00:00]} Bxg4 {[%emt 0:00:04]} 19. Rd4 {[%emt 0:00:00]} Rad8 {[%emt 0:08:24]} 20. O-O {[%emt 0:00:00]} Rxd4 {[%emt 0:06:30]} 21. Qxd4 {[%emt 0:00:00]} Qd7 {[%emt 0:00:04]} 22. Qc3 {[%emt 0:00:00]} fxe5 {[%emt 0:00:31]} 23. Bxe5 {[%emt 0:00:00]} Re6 {[%emt 0:02:13]} 24. h3 {[%emt 0:00:00]} Bf5 {[%emt 0:02:05]} 25. Qxa5 {[%emt 0:00:00]} b6 {[%emt 0:02:10]} 26. Qc3 {[%emt 0:00:00]} Rg6 {[%emt 0:00:46]} 27. Bg3 {[%emt 0:00:00]} h5 {[%emt 0:00:37]} 28. Kh2 {[%emt 0:05:30]} Qc6 {[%emt 0:02:50]} 29. Qe5 {[%emt 0:00:00]} Bd3 {[%emt 0:02:21]} 30. Rd1 {[%emt 0:01:00]} h4 {[%emt 0:00:30]} 31. Rxd3 {[%emt 0:00:00]} hxg3+ {[%emt 0:00:30]} 32. fxg3 {[%emt 0:00:00]} Qxc4 {[%emt 0:00:30]} 33. Rc3 {[%emt 0:01:30]} Qe6 {[%emt 0:00:00]} 34. Qxe6+ {[%emt 0:00:00]} Rxe6 {[%emt 0:00:00]} 35. Rxc7 {[%emt 0:00:00]} Re2 {[%emt 0:00:00]} 36. b4 {[%emt 0:00:00]} Re3 {[%emt 0:02:00]} 37. Rb7 {[%emt 0:02:00]} Re6 {[%emt 0:00:00]} 38. a4 {[%emt 0:00:30]} Kf8 {[%emt 0:00:05]} 39. g4 {[%emt 0:00:00]} g5 {[%emt 0:00:33]} 40. Kg3 {[%emt 0:00:00]} Rf6 {[%emt 0:00:38]} 41. b5 {[%emt 0:00:00]} Rd6 {[%emt 0:00:31]} 42. Kf3 {[%emt 0:00:00]} Re6 {[%emt 0:00:30]} 43. Rc7 {[%emt 0:00:00]} Rf6+ {[%emt 0:00:20]} 44. Ke3 {[%emt 0:00:01]} Rf4 {[%emt 0:00:39]} 45. a5 {[%emt 0:00:26]} bxa5 {[%emt 0:00:41]} 46. b6 {[%emt 0:00:15]} 1-0

[Event "8th Brazilian Open SESC Caioba 2024"]
[Site "Caioba"]
[Date "2024.06.28"]
[Round "7.12"]
[White "Tsuboi, Edson Kenji"]
[Black "Do Valle Cardoso, Lucas"]
[Result "0-1"]
[ECO "B60"]
[WhiteElo "2193"]
[BlackElo "2356"]
[Annotator "RC"]
[PlyCount "69"]
[EventDate "2024.06.15"]
[EventCountry "BRA"]
[SourceTitle "playchess.com"]
[Source "ChessBase"]
[SourceQuality "1"]
[TimeControl "5400+30"]

1. e4 {[%emt 0:00:20]} c5 {[%emt 0:00:08]} 2. Nf3 {[%emt 0:00:18]} d6 {[%emt 0:00:07]} 3. d4 {[%emt 0:00:09]} cxd4 {[%emt 0:00:06]} 4. Nxd4 {[%emt 0:00:04]} Nf6 {[%emt 0:00:09]} 5. Nc3 {[%emt 0:00:05]} Nc6 {[%emt 0:00:04]} 6. Bg5 {[%emt 0:01:07]} Qa5 {[%emt 0:00:07]} 7. Bxf6 {[%emt 0:02:00]} gxf6 {[%emt 0:00:02]} 8. Be2 {[%emt 1:30:27]} Rg8 9. g3 {[%emt 0:00:00]} Bd7 {[%emt 0:14:06]} 10. Qd2 {[%emt 0:00:00]} Nxd4 {[%emt 0:11:08]} 11. Qxd4 {[%emt 0:00:00]} f5 {[%emt 0:00:30]} 12. exf5 {[%emt 0:00:00]} Bg7 {[%emt 0:00:30]} 13. Qe3 {[%emt 0:00:00]} Bxf5 {[%emt 0:00:30]} 14. O-O {[%emt 0:00:00]} Be6 {[%emt 0:00:30]} 15. Rfe1 {[%emt 0:00:00]} O-O-O {[%emt 0:40:15]} 16. Nb5 {[%emt 0:00:00]} Kb8 {[%emt 0:01:41]} 17. c3 {[%emt 0:00:00]} Bf6 {[%emt 0:06:43]} 18. a4 {[%emt 0:00:00]} Bd7 {[%emt 0:07:50]} 19. Bc4 {[%emt 0:01:54]} Be8 {[%emt 0:02:00]} 20. Bd5 {[%emt 0:00:52]} Qb6 {[%emt 0:04:37]} 21. Qxb6 {[%emt 0:00:30]} axb6 {[%emt 0:00:30]} 22. Rad1 {[%emt 0:00:30]} h5 {[%emt 0:00:30]} 23. Re3 {[%emt 0:00:30]} h4 {[%emt 0:00:30]} 24. Kh1 {[%emt 0:00:30]} Rg5 {[%emt 0:00:30]} 25. Bg2 {[%emt 0:00:30]} Bxb5 {[%emt 0:00:30]} 26. axb5 {[%emt 0:00:30]} Rxb5 {[%emt 0:00:30]} 27. Re2 {[%emt 0:01:17]} e6 {[%emt 0:06:26]} 28. gxh4 {[%emt 0:01:05]} Bxh4 {[%emt 0:01:10]} 29. Re4 {[%emt 0:00:30]} Bxf2 {[%emt 0:00:30]} 30. Rf4 {[%emt 0:01:07]} Rxb2 {[%emt 0:01:22]} 31. Rxf7 {[%emt 0:00:30]} d5 {[%emt 0:00:30]} 32. c4 {[%emt 0:00:30]} Bc5 {[%emt 0:00:30]} 33. cxd5 {[%emt 0:00:30]} Rg8 {[%emt 0:00:30]} 34. Be4 {[%emt 0:00:30]} exd5 {[%emt 0:00:30]} 35. Bh7 {[%emt 0:00:30]} 0-1

[Event "8th Brazilian Open SESC Caioba 2024"]
[Site "Caioba"]
[Date "2024.06.28"]
[Round "7.13"]
[White "Hoffman, Alejandro"]
[Black "Aranha Filho, Alvaro Z."]
[Result "1-0"]
[ECO "A14"]
[WhiteElo "2355"]
[BlackElo "2200"]
[Annotator "RC"]
[PlyCount "81"]
[EventDate "2024.06.15"]
[EventCountry "BRA"]
[SourceTitle "playchess.com"]
[Source "ChessBase"]
[SourceQuality "1"]
[TimeControl "5400+30"]

1. Nf3 {[%emt 0:00:04]} d5 {[%emt 0:13:58]} 2. c4 {[%emt 0:00:27]} e6 {[%emt 0:00:20]} 3. g3 {[%emt 0:03:23]} Nf6 {[%emt 0:00:14]} 4. Bg2 {[%emt 0:00:08]} Be7 {[%emt 0:00:09]} 5. O-O {[%emt 0:00:26]} O-O {[%emt 0:00:52]} 6. b3 {[%emt 0:01:41]} d4 {[%emt 0:03:28]} 7. e3 {[%emt 0:03:00]} c5 {[%emt 0:04:28]} 8. exd4 {[%emt 0:01:04]} cxd4 {[%emt 0:00:10]} 9. d3 {[%emt 0:01:29]} Nc6 {[%emt 0:00:54]} 10. Re1 {[%emt 0:01:00]} Nd7 {[%emt 0:05:53]} 11. Na3 {[%emt 0:10:40]} e5 {[%emt 0:05:45]} 12. Nc2 {[%emt 0:00:56]} a5 {[%emt 0:03:20]} 13. a3 {[%emt 0:08:15]} f5 {[%emt 0:09:11]} 14. Rb1 {[%emt 0:04:17]} Bf6 {[%emt 0:03:02]} 15. b4 {[%emt 0:04:10]} Re8 {[%emt 0:01:51]} 16. h4 {[%emt 0:10:26]} h6 {[%emt 0:09:06]} 17. c5 {[%emt 0:13:52]} Nf8 {[%emt 0:05:01]} 18. b5 {[%emt 0:06:33]} Ne7 {[%emt 0:04:56]} 19. Nd2 {[%emt 0:02:15]} Ne6 {[%emt 0:05:04]} 20. c6 {[%emt 0:00:21]} bxc6 {[%emt 0:03:53]} 21. bxc6 {[%emt 0:00:07]} Nd5 {[%emt 0:00:22]} 22. Qh5 {[%emt 0:04:42]} Re7 {[%emt 0:05:16]} 23. Nc4 {[%emt 0:02:02]} Nec7 {[%emt 0:01:07]} 24. Bd2 {[%emt 0:01:11]} Nc3 {[%emt 0:02:31]} 25. Rb7 {[%emt 0:00:35]} Ra6 {[%emt 0:05:55]} 26. Rb8 {[%emt 0:09:45]} Ra8 {[%emt 0:00:39]} 27. Rxa8 {[%emt 0:02:43]} Nxa8 {[%emt 0:00:01]} 28. Bg5 {[%emt 0:00:12]} hxg5 {[%emt 0:01:34]} 29. hxg5 {[%emt 0:00:06]} g6 {[%emt 0:01:04]} 30. Qxg6+ {[%emt 0:00:06]} Bg7 {[%emt 0:00:15]} 31. Rxe5 {[%emt 0:00:06]} Rxe5 {[%emt 0:01:06]} 32. Nxe5 {[%emt 0:00:06]} Qe7 {[%emt 0:00:14]} 33. Nd7 {[%emt 0:03:37]} Bxd7 {[%emt 0:01:52]} 34. cxd7 {[%emt 0:00:13]} Nc7 {[%emt 0:00:05]} 35. Qc6 {[%emt 0:03:51]} Qd8 {[%emt 0:01:09]} 36. Bh3 {[%emt 0:00:38]} f4 {[%emt 0:00:56]} 37. Be6+ {[%emt 0:00:50]} Kh7 {[%emt 0:00:28]} 38. Qh1+ {[%emt 0:01:55]} Kg6 {[%emt 0:00:01]} 39. g4 {[%emt 0:00:25]} Kxg5 {[%emt 0:01:13]} 40. Qh5+ {[%emt 0:00:06]} Kf6 {[%emt 0:00:04]} 41. Qh4+ {[%emt 0:01:01]} 1-0

[Event "8th Brazilian Open SESC Caioba 2024"]
[Site "Caioba"]
[Date "2024.06.28"]
[Round "7.14"]
[White "Lage, Pedro Ferreira"]
[Black "Acosta, Pablo Ismael"]
[Result "1-0"]
[ECO "A06"]
[WhiteElo "2077"]
[BlackElo "2449"]
[Annotator "TA"]
[PlyCount "107"]
[EventDate "2024.06.15"]
[EventCountry "BRA"]
[SourceTitle "playchess.com"]
[Source "ChessBase"]
[SourceQuality "1"]
[TimeControl "5400+30"]

{[%evp 17,107,14,16,12,17,16,13,9,22,15,28,35,42,25,44,41,39,31,61,25,30,5,324,326,326,317,306,-69,-46,0,137,132,117,123,118,118,133,46,253,256,243,239,204,264,282,294,293,298,295,172,172,172,226,220,207,201,385,376,377,368,410,400,381,394,413,406,403,284,675,246,262,260,396,396,614,614,614,614,614,614,614,614,614,599,592,586,562,0,0,0,0,0]} 1. Nf3 {[%emt 0:09:42]} d5 {[%emt 0:00:16]} 2. e3 {[%emt 0:03:13]} Nf6 {[%emt 0:00:29]} 3. b3 {[%emt 0:01:07]} Bg4 {[%emt 0:00:44]} 4. Bb2 {[%emt 0:00:22]} Nbd7 {[%emt 0:00:13]} 5. Be2 {[%emt 0:01:13]} Bxf3 {[%emt 0:00:40]} 6. Bxf3 {[%emt 0:00:06]} e5 {[%emt 0:00:04]} 7. d4 {[%emt 0:02:46]} e4 {[%emt 0:00:35]} 8. Be2 {[%emt 0:00:10]} c6 {[%emt 0:00:26]} 9. O-O {[%emt 0:01:15]} Bd6 {[%emt 0:00:07]} 10. Ba3 {[%emt 0:01:59]} Bxa3 {[%emt 0:02:29]} 11. Nxa3 {[%emt 0:00:04]} Qe7 {[%emt 0:00:08]} 12. Nb1 {[%emt 0:01:33]} h5 {[%emt 0:02:38]} 13. c4 {[%emt 0:00:46]} Qd6 {[%emt 0:03:33]} 14. Nc3 {[%emt 0:02:14]} a6 {[%emt 0:08:16]} 15. cxd5 {[%emt 0:02:36]} cxd5 {[%emt 0:00:05]} 16. Rc1 {[%emt 0:01:01]} Ng4 {[%emt 0:03:38]} 17. g3 $1 {[%emt 0:00:39]} f5 {[%emt 0:07:23]} 18. Qc2 {[%emt 0:06:48]} Ke7 {[%emt 0:15:38]} 19. Na4 {[%emt 0:04:13]} (19. b4 $5) 19... Nxh2 $2 {[%emt 0:07:06][%mdl 8192]} (19... Rab8 $11 {and Black has nothing to worry.}) 20. Kxh2 $18 {[%emt 0:02:55]} h4 {[%emt 0:00:26]} 21. Kg2 {[%emt 0:08:09]} hxg3 {[%emt 0:00:14]} 22. Rh1 $2 {[%emt 0:01:12]} (22. fxg3 $18 Qh6 23. Kf2 (23. Rxf5 $2 Qh2+ 24. Kf1 Qh1+ 25. Kf2 Rh2#)) 22... gxf2 $1 $15 {[%emt 0:02:17]} 23. Kxf2 {[%emt 0:22:25]} Rh2+ {[%emt 0:04:38]} (23... f4 $11 24. Rcg1 Rxh1 25. Rxh1 f3) 24. Rxh2 $16 {[%emt 0:00:25]} Qxh2+ {[%emt 0:00:05]} 25. Ke1 {[%emt 0:01:09]} Qg3+ {[%emt 0:04:51]} 26. Kd2 {[%emt 0:02:02]} f4 {[%emt 0:00:05]} 27. Qc3 {[%emt 0:02:26]} (27. exf4 $1 $16 Qxf4+ 28. Kd1) 27... f3 $2 {[%emt 0:02:24]} (27... b5 $1 $14) 28. Qb4+ $18 {[%emt 0:04:10]} Qd6 {[%emt 0:01:31]} 29. Qxb7 {[%emt 0:02:52]} Rb8 {[%emt 0:13:18]} 30. Qxa6 {[%emt 0:01:29]} fxe2 {[%emt 0:04:16] [#]} 31. Qxd6+ $1 {[%emt 0:01:05]} (31. Qxe2 g6 32. Kc2 Rh8 $18) 31... Kxd6 {[%emt 0:00:01]} 32. Rg1 {[%emt 0:00:43]} (32. Kxe2 Rh8 $16) 32... Rh8 {[%emt 0:00:29]} 33. Rxg7 {[%emt 0:03:11]} (33. Kxe2 Rh2+ 34. Kd1 Rxa2 35. Rxg7 Ra1+ 36. Kc2 Ra2+ 37. Kc1 Nf6 $16) (33. Nc3 $142) 33... Rh1 $18 {[%emt 0:01:18]} 34. Rg6+ {[%emt 0:00:49]} Ke7 {[%emt 0:01:21]} (34... Kc7 {keeps fighting.} 35. Kxe2 Rh2+ 36. Kd1 Rxa2) 35. Kxe2 $18 {[%emt 0:00:05]} Rh2+ {[%emt 0:00:05]} 36. Kd1 {[%emt 0:00:12]} Rxa2 $2 {[%emt 0:02:06]} (36... Kf7 37. Rg5 Rxa2 38. Rxd5 Nf6) 37. Nc3 $18 {[%emt 0:01:27]} Ra1+ {[%emt 0:00:35]} 38. Kc2 {[%emt 0:00:53]} Nf6 {[%emt 0:00:09]} 39. b4 {[%emt 0:01:09]} Kf7 {[%emt 0:00:01]} 40. Rg5 {[%emt 0:00:43]} Ke6 {[%emt 0:03:39]} 41. b5 {[%emt 0:00:09]} Kd6 {[%emt 0:00:39]} 42. b6 {[%emt 0:02:50]} Kc6 $2 {[%emt 0:05:57]} (42... Ra8 43. Rg7 Rc8) 43. Rf5 $2 {[%emt 0:03:16]} (43. Rg6 Kxb6 44. Nxd5+ (44. Rxf6+ Kb7 $18) 44... Ka5 45. Nxf6 (45. Rxf6 Rh1 $18)) 43... Ng4 {[%emt 0:02:33]} 44. Nxd5 {[%emt 0:00:34]} Ra5 {[%emt 0:01:00]} (44... Ra3 {was worth a try.} 45. Kb2 Rxe3 46. Nxe3 Nxe3 47. Rf6+ Kb7) 45. Rf4 $18 {[%emt 0:00:50]} Ra2+ {[%emt 0:01:23]} (45... Ne5 $142 46. Nb4+ (46. dxe5 Kxd5 47. e6 Kxe6 $18) (46. Rxe4 Nc4 $18) 46... Kxb6 47. dxe5 Rxe5) 46. Kb3 $18 {[%emt 0:00:50]} Rg2 {[%emt 0:00:04]} 47. Rf7 {[%emt 0:02:04]} Kxd5 {[%emt 0:04:07]} 48. b7 {[%emt 0:00:05]} Rg1 {[%emt 0:00:00]} 49. Ka2 {[%emt 0:01:17]} Rg2+ {[%emt 0:00:00]} 50. Ka1 {[%emt 0:00:22]} Rg1+ {[%emt 0:00:00]} 51. Kb2 {[%emt 0:00:14]} Rg2+ {[%emt 0:00:00] [#]} 52. Kc3 $2 {[%emt 0:00:34]} ({White must play} 52. Ka3 $1 $18 Nxe3 53. Rc7 (53. b8=R $2 Nc4+ 54. Kb3 Rb2+ 55. Kc3 Rxb8 $19) (53. Rd7+ Kc6 $11) 53... Nc4+ (53... Kxd4 $2 54. b8=Q $18) (53... Rg8 $2 54. Rc8 $18) 54. Rxc4 Kxc4 55. b8=Q (55. b8=B e3 56. Bc7 e2 57. Ba5 Kxd4 58. Kb3 Kd3 59. Be1 Rg1 60. Bh4 e1=Q 61. Bxe1 Rxe1 62. Kb4 Re5 63. Kb3 Rb5+ 64. Ka4 Kc4 65. Ka3 Rb6 66. Ka2 Kc3 67. Ka1 Kc2 68. Ka2 Ra6#) 55... Kxd4 56. Kb3) 52... Nxe3 $11 {[%emt 0:00:00]} 53. Rd7+ {[%emt 0:01:57]} (53. b8=B Nd1+ 54. Kb4 Rb2+ (54... Kxd4 55. Rd7+ Ke3 56. Ba7+ Ke2 57. Rh7 $15) 55. Ka5 Rxb8 $19) 53... Kc6 {[%emt 0:00:00]} 54. d5+ {[%emt 0:00:33]} (54. b8=Q $2 {perishes.} Nd1+ 55. Kc4 Rc2+ (55... Kxd7 56. Qb7+ Kd6 57. Qd5+ Kc7 58. Qxe4 $18) 56. Kb4 Rb2+ (56... Kxd7 $2 {is the wrong capture.} 57. Qb5+ Kd8 58. Qd5+ Kc7 59. Qxe4 $18) 57. Kc4 Rxb8 $19) 1-0

[Event "8th Brazilian Open SESC Caioba 2024"]
[Site "Caioba"]
[Date "2024.06.28"]
[Round "7.15"]
[White "Gauche, Charles"]
[Black "Hernandez Guerrero, Gilberto"]
[Result "1/2-1/2"]
[ECO "B42"]
[WhiteElo "2153"]
[BlackElo "2506"]
[Annotator "RC"]
[PlyCount "56"]
[EventDate "2024.06.15"]
[EventCountry "BRA"]
[SourceTitle "playchess.com"]
[Source "ChessBase"]
[SourceQuality "1"]
[TimeControl "5400+30"]

1. e4 {[%emt 0:00:03]} c5 {[%emt 0:00:13]} 2. Nf3 {[%emt 0:00:09]} e6 {[%emt 0:00:11]} 3. d4 {[%emt 0:00:17]} cxd4 {[%emt 0:00:06]} 4. Nxd4 {[%emt 0:00:05]} a6 {[%emt 0:00:04]} 5. Bd3 {[%emt 0:00:19]} Bc5 {[%emt 0:00:16]} 6. Nb3 {[%emt 0:00:36]} Ba7 {[%emt 0:00:06]} 7. c4 {[%emt 0:01:12]} Nc6 {[%emt 0:01:46]} 8. O-O {[%emt 0:00:52]} d6 {[%emt 0:01:03]} 9. Nc3 {[%emt 0:00:43]} Nf6 {[%emt 0:00:31]} 10. Qe2 {[%emt 0:00:59]} h6 {[%emt 0:09:22]} 11. Rd1 {[%emt 0:06:13]} O-O {[%emt 0:04:24]} 12. Be3 {[%emt 0:03:57]} e5 {[%emt 0:02:43]} 13. Bxa7 {[%emt 0:05:40]} Rxa7 {[%emt 0:00:07]} 14. Rd2 {[%emt 0:00:16]} Be6 {[%emt 0:02:01]} 15. Rad1 {[%emt 0:02:47]} Qb8 {[%emt 0:00:09]} 16. Nd5 {[%emt 0:06:38]} Nd7 {[%emt 0:00:18]} 17. Qe3 {[%emt 0:00:48]} b6 {[%emt 0:00:12]} 18. Bf1 {[%emt 0:01:00]} Nc5 {[%emt 0:16:45]} 19. Nc1 {[%emt 1:07:26]} b5 {[%emt 0:22:45]} 20. Ne2 {[%emt 0:00:00]} b4 {[%emt 0:02:44]} 21. Ng3 {[%emt 0:00:00]} f6 {[%emt 0:02:23]} 22. Qe1 {[%emt 0:00:00]} a5 {[%emt 0:00:42]} 23. Ne3 {[%emt 0:00:00]} Nd4 {[%emt 0:02:35]} 24. f3 {[%emt 0:00:00]} Rd8 {[%emt 0:01:48]} 25. Ne2 {[%emt 0:00:00]} Nc6 {[%emt 0:00:49]} 26. Ng3 {[%emt 0:00:00]} Nd4 {[%emt 0:01:46]} 27. Ne2 {[%emt 0:00:00]} Nc6 {[%emt 0:00:21]} 28. Ng3 {[%emt 0:00:00]} Nd4 {[%emt 0:01:55]} 1/2-1/2